bitfinex/quotes_ETHUSD_20230404
["timestamp","ask_amount","ask_price","bid_price","bid_amount"]
[1680616665170,3.203,1862.4,1862.0,0.025]
[1680616665479,3.35334,1862.4,1862.0,0.025]
[1680616665843,3.203,1862.4,1862.0,0.025]
[1680616666042,0.15034,1862.4,1862.0,0.025]
[1680616666341,3.206,1862.5,1862.0,0.025]
[1680616666342,3.35334,1862.5,1862.0,0.025]
[1680616666571,3.905305,1862.5,1862.0,0.025]
[1680616666889,2.017,1862.2,1862.0,0.025]
[1680616667052,2.16736,1862.2,1862.0,0.025]
[1680616667470,2.16736,1862.2,1861.7,0.002]
[1680616667471,2.017,1862.1,1861.7,0.002]
[1680616667795,2.011,1862.0,1861.6,0.21486]
[1680616667994,2.011,1862.0,1861.4,0.006]
[1680616667995,3.6542,1861.7,1861.4,0.006]
[1680616668205,3.77012,1861.7,1861.3,0.1]
[1680616668359,3.92052,1861.7,1861.3,0.1]
[1680616669377,5.36441,1861.6,1861.3,0.1]
[1680616669577,5.990643,1861.6,1861.3,0.1]
[1680616670322,6.291453,1861.6,1861.3,0.1]
[1680616671223,5.840233,1861.6,1861.3,0.1]
[1680616671427,5.990633,1861.6,1861.3,0.1]
[1680616671974,2.017,1861.4,1861.3,0.1]
[1680616672180,6.47465,1861.4,1861.3,0.1]
[1680616672475,5.57512,1861.4,1861.3,0.1]
[1680616672951,5.87596,1861.4,1861.3,0.1]
[1680616673521,9.10596,1861.4,1861.3,0.1]
[1680616674960,14.70596,1861.4,1861.3,0.1]
[1680616675482,14.70596,1861.4,1861.1,0.31476]
[1680616675677,5.66532,1861.2,1861.1,0.31476]
[1680616675909,5.89832,1861.2,1861.1,0.31476]
[1680616676483,3.35644,1861.2,1861.1,0.31476]
[1680616676709,3.35344,1861.2,1861.1,0.31476]
[1680616676908,3.50388,1861.2,1861.1,0.31476]
[1680616677116,6.223708,1861.2,1861.1,0.31476]
[1680616677441,6.456708,1861.2,1861.1,0.31476]
[1680616677725,14.52185018,1861.2,1861.1,0.31476]
[1680616677925,8.92185018,1861.2,1861.1,0.31476]
[1680616678225,6.226708,1861.2,1861.1,0.31476]
[1680616679024,5.925828,1861.2,1861.1,0.31476]
[1680616679322,8.99273018,1861.2,1861.1,0.31476]
[1680616679531,9.22273018,1861.2,1861.1,0.31476]
[1680616679881,5.925828,1861.2,1861.1,0.31476]
[1680616680081,5.37344,1861.2,1861.1,0.31476]
[1680616680288,3.35644,1861.2,1861.1,0.31476]
[1680616680515,3.203,1861.2,1861.1,0.31476]
[1680616680719,0.003,1861.3,1861.1,0.31476]
[1680616680937,3.50386,1861.3,1861.1,0.31476]
[1680616681080,3.203,1861.3,1861.1,0.31476]
[1680616681285,5.22,1861.2,1861.1,0.31476]
[1680616681494,5.37344,1861.2,1861.1,0.31476]
[1680616682789,5.37344,1861.2,1861.1,0.1]
[1680616683101,3.206,1861.2,1861.1,0.1]
[1680616683301,3.206,1861.3,1861.1,0.1]
[1680616683519,3.203,1861.3,1861.1,0.1]
[1680616684231,3.35343,1861.3,1861.1,0.1]
[1680616684404,3.203,1861.2,1861.1,0.1]
[1680616684736,3.35344,1861.2,1861.1,0.1]
[1680616684937,3.203,1861.2,1861.1,0.1]
[1680616685089,3.35344,1861.2,1861.1,0.1]
[1680616685283,4.2548843,1861.2,1861.1,0.1]
[1680616686412,3.65432,1861.2,1861.1,0.1]
[1680616687117,0.003,1861.3,1861.1,0.1]
[1680616687324,5.20885024,1861.5,1861.1,0.1]
[1680616687325,3.35641,1861.5,1861.1,0.1]
[1680616687528,3.35341,1861.5,1861.1,0.1]
[1680616687708,3.203,1861.5,1861.1,0.1]
[1680616688342,3.203,1861.4,1861.1,0.1]
[1680616688643,3.203,1861.5,1861.2,0.02206273]
[1680616688842,0.003,1861.7,1861.2,0.02206273]
[1680616689009,11.1847,1861.8,1861.2,0.625954]
[1680616689209,2.7,1861.5,1861.2,3.203784]
[1680616689401,2.7,1861.5,1861.3,2.148]
[1680616689596,2.7,1861.5,1861.3,2.4687784]
[1680616689910,2.7,1861.5,1861.2,0.14706273]
[1680616690112,2.85041,1861.5,1861.2,2.267]
[1680616690334,2.85041,1861.5,1861.2,0.004]
[1680616690499,2.85041,1861.5,1861.1,0.102]
[1680616690500,2.7,1861.5,1861.1,0.106]
[1680616690695,2.7,1861.5,1861.2,2.76602218]
[1680616690917,2.7,1861.5,1861.2,0.006]
[1680616691222,2.7,1861.5,1861.2,2.265]
[1680616691427,2.7,1861.5,1861.2,2.271]
[1680616691742,5.903,1861.5,1861.2,2.271]
[1680616691899,5.906,1861.5,1861.2,2.271]
[1680616692096,2.703,1861.5,1861.2,2.271]
[1680616692434,2.703,1861.5,1861.2,0.123]
[1680616692435,2.7,1861.5,1861.2,0.123]
[1680616692636,2.7,1861.5,1861.3,2.148]
[1680616692950,2.7,1861.5,1861.2,0.123]
[1680616693150,2.7,1861.5,1861.3,2.17006155]
[1680616693303,2.7,1861.5,1861.3,2.17606155]
[1680616694015,2.7,1861.5,1861.3,0.02806155]
[1680616694218,2.7,1861.5,1861.3,2.79408373]
[1680616696030,2.7,1861.5,1861.4,2.148]
[1680616696231,2.7,1861.5,1861.4,2.64620837]
[1680616696671,2.7,1861.5,1861.4,2.64820837]
[1680616697705,2.7,1861.5,1861.4,2.64620837]
[1680616698030,2.7,1861.5,1861.4,2.64820837]
[1680616698274,2.7,1861.5,1861.4,2.64620837]
[1680616698587,2.6977391,1861.5,1861.4,2.64020837]
[1680616698762,2.6977391,1861.5,1861.4,5.40623055]
[1680616699126,0.00985024,1861.8,1861.4,5.40623055]
[1680616699127,0.00985024,1861.8,1861.6,5.6]
[1680616699329,1.05980368,1862.9,1861.9,1.0]
[1680616699330,0.00385024,1862.6,1861.9,1.0]
[1680616699529,0.11685025,1862.5,1862.0,4.78302218]
[1680616699848,0.11685025,1862.5,1862.1,2.146]
[1680616700042,0.11000001,1862.5,1862.2,2.98062218]
[1680616700253,0.11000001,1862.5,1862.2,11.40462218]
[1680616700449,0.11000001,1862.5,1862.3,2.146]
[1680616700632,0.11000001,1862.5,1862.3,4.91202218]
[1680616700976,0.11000001,1862.5,1862.4,2.63720222]
[1680616701401,0.11000001,1862.5,1862.4,3.47020222]
[1680616702082,2.81000001,1862.5,1862.4,3.47020222]
[1680616702284,2.81685025,1862.5,1862.4,2.979]
[1680616703580,0.11685025,1862.5,1862.4,2.979]
[1680616703798,0.11000001,1862.5,1862.4,0.833]
[1680616704955,0.11000001,1862.5,1862.4,3.7043707]
[1680616705209,0.11000001,1862.5,1862.4,7.0343707]
[1680616705362,0.11000001,1862.5,1862.4,5.8233707]
[1680616705869,0.11000001,1862.5,1862.4,0.91134852]
[1680616706070,0.11000001,1862.5,1862.4,0.806]
[1680616709180,0.11000001,1862.5,1862.4,3.57202218]
[1680616709908,0.11000001,1862.5,1862.4,0.806]
[1680616710094,3.31300001,1862.5,1862.1,2.148]
[1680616710293,3.31300001,1862.5,1861.9,2.148]
[1680616710294,3.5343,1862.4,1861.9,2.148]
[1680616710479,3.15985024,1862.4,1861.9,2.148]
[1680616710682,3.153,1862.4,1861.9,2.152]
[1680616710905,3.153,1862.4,1861.9,2.146]
[1680616711204,3.153,1862.4,1862.0,2.146]
[1680616711511,3.153,1862.4,1861.8,4.94207781]
[1680616711691,3.153,1862.4,1861.8,5.58188337]
[1680616711895,3.153,1862.4,1861.9,2.146]
[1680616712297,0.11000001,1862.5,1862.0,0.811]
[1680616712832,0.11000001,1862.5,1862.0,3.57702218]
[1680616713013,0.11000001,1862.5,1862.0,4.17137766]
[1680616713219,0.11000001,1862.5,1862.1,4.91202218]
[1680616713729,0.11000001,1862.5,1862.2,4.163]
[1680616714025,0.11000001,1862.5,1862.3,4.91202218]
[1680616714443,0.11000001,1862.5,1862.4,2.16804852]
[1680616714600,0.11000001,1862.5,1862.4,5.42747777]
[1680616716747,0.11000001,1862.5,1862.4,0.49340707]
[1680616716945,0.11000001,1862.5,1862.4,0.792]
[1680616717449,0.11000001,1862.5,1862.4,2.938]
[1680616717745,0.11000001,1862.5,1862.4,0.792]
[1680616718542,0.11000001,1862.5,1862.4,11.30402218]
[1680616718805,0.11000001,1862.5,1862.4,5.70402218]
[1680616719011,0.11000001,1862.5,1862.4,7.1346244]
[1680616721223,0.11000001,1862.5,1862.4,10.1346244]
[1680616722249,0.11000001,1862.5,1862.4,10.7789444]
[1680616722906,0.11000001,1862.5,1862.4,8.6329444]
[1680616723147,0.11000001,1862.5,1862.4,10.7789444]
[1680616724850,0.11000001,1862.5,1862.4,16.3789444]
[1680616725013,0.11000001,1862.5,1862.4,17.3789444]
[1680616726110,0.11000001,1862.5,1862.4,17.2789444]
[1680616726863,0.11000001,1862.5,1862.4,17.1379444]
[1680616727063,0.11000001,1862.5,1862.4,19.2839444]
[1680616727766,0.11000001,1862.5,1862.4,19.5139444]
[1680616728613,0.11000001,1862.5,1862.4,19.2839444]
[1680616731962,0.11000001,1862.5,1862.4,19.84500771]
[1680616732876,0.11000001,1862.5,1862.4,20.07500771]
[1680616733186,0.11000001,1862.5,1862.4,20.34178733]
[1680616733388,0.06000001,1862.5,1862.4,20.34178733]
[1680616733691,0.06000001,1862.5,1862.4,20.07500771]
[1680616734053,0.06000001,1862.5,1862.4,20.90835929]
[1680616734250,1e-08,1862.5,1862.4,20.90835929]
[1680616734451,1e-08,1862.5,1862.4,21.17513891]
[1680616734963,1e-08,1862.5,1862.4,20.90835929]
[1680616735206,1e-08,1862.5,1862.4,20.07500771]
[1680616736089,1e-08,1862.5,1862.4,18.67121274]
[1680616736302,1e-08,1862.5,1862.4,17.83786116]
[1680616736482,1e-08,1862.5,1862.4,18.67121274]
[1680616736684,1e-08,1862.5,1862.4,17.83786116]
[1680616736992,1e-08,1862.5,1862.4,12.23786116]
[1680616737201,1e-08,1862.5,1862.4,11.6789444]
[1680616737401,1e-08,1862.5,1862.4,12.23786116]
[1680616737952,1e-08,1862.5,1862.4,13.07146631]
[1680616738183,1e-08,1862.5,1862.4,12.23812816]
[1680616738709,1e-08,1862.5,1862.4,11.23812816]
[1680616738851,1e-08,1862.5,1862.4,6.24834218]
[1680616739914,0.00599091,1862.5,1862.4,6.24834218]
[1680616740678,0.00599091,1862.5,1862.4,14.84834218]
[1680616740896,1e-08,1862.5,1862.4,14.84834218]
[1680616741217,1e-08,1862.5,1862.4,15.94212597]
[1680616741400,1e-08,1862.5,1862.4,18.19414773]
[1680616741708,1e-08,1862.5,1862.4,19.19414773]
[1680616744110,1e-08,1862.5,1862.4,18.49967583]
[1680616744279,1e-08,1862.5,1862.4,12.62138464]
[1680616745311,1e-08,1862.5,1862.4,7.08914789]
[1680616746712,1e-08,1862.5,1862.4,10.08914789]
[1680616747718,1e-08,1862.5,1862.4,15.68914789]
[1680616747921,1e-08,1862.5,1862.4,10.08914789]
[1680616748139,1e-08,1862.5,1862.4,11.21016859]
[1680616748282,1e-08,1862.5,1862.4,12.55943261]
[1680616748593,1e-08,1862.5,1862.4,11.7186269]
[1680616748780,1e-08,1862.5,1862.4,24.57339401]
[1680616748975,1e-08,1862.5,1862.4,23.67086174]
[1680616749230,1e-08,1862.5,1862.4,25.35032072]
[1680616749380,1e-08,1862.5,1862.4,23.67086174]
[1680616749896,1e-08,1862.5,1862.4,25.35032072]
[1680616750094,1e-08,1862.5,1862.4,23.67086174]
[1680616750724,1e-08,1862.5,1862.4,25.35032072]
[1680616751473,1e-08,1862.5,1862.4,25.0835411]
[1680616752025,1e-08,1862.5,1862.4,23.9355411]
[1680616753836,1e-08,1862.5,1862.4,25.0885411]
[1680616754237,1e-08,1862.5,1862.4,24.0885411]
[1680616754523,1e-08,1862.5,1862.4,25.0885411]
[1680616755162,1e-08,1862.5,1862.4,25.35532072]
[1680616755664,1e-08,1862.5,1862.4,26.50832072]
[1680616755865,0.11000001,1863.3,1862.8,6.6]
[1680616756067,0.11000001,1863.3,1863.2,5.6]
[1680616756270,0.11000001,1863.3,1863.2,12.86879218]
[1680616756473,0.11000001,1863.3,1863.2,15.01279218]
[1680616756925,0.11000001,1863.3,1863.2,15.57343427]
[1680616757367,0.11000001,1863.3,1863.2,15.80343427]
[1680616757568,0.11000001,1863.3,1863.2,18.25707401]
[1680616757986,0.11000001,1863.3,1863.2,11.13898401]
[1680616758140,0.11000001,1863.3,1863.2,9.90370427]
[1680616758989,0.11000001,1863.3,1863.1,1.12328417]
[1680616759296,0.15028,1863.1,1862.9,0.56310532]
[1680616759449,1.30329,1863.0,1862.8,0.56110532]
[1680616759650,1.153,1862.9,1862.7,1.40276329]
[1680616759870,1.153,1862.9,1862.7,0.56110532]
[1680616760069,1.153,1862.9,1862.8,0.56110532]
[1680616760264,1.153,1862.9,1862.7,0.56110532]
[1680616760468,1.153,1862.9,1862.6,1.40276329]
[1680616760668,1.153,1862.9,1862.6,2.70710532]
[1680616760879,1.153,1862.9,1862.7,0.56110532]
[1680616761483,1.153,1862.9,1862.7,2.70710532]
[1680616761684,1.153,1862.9,1862.7,0.56110532]
[1680616762037,1.15985024,1863.0,1862.7,0.56110532]
[1680616762269,2.005,1863.0,1862.7,2.70710532]
[1680616762473,2.16840936,1863.0,1862.7,0.56110532]
[1680616762887,2.16840936,1863.0,1862.7,2.70710532]
[1680616763057,2.16840936,1863.0,1862.8,0.56110532]
[1680616763460,2.01185024,1863.0,1862.8,0.56110532]
[1680616764189,2.005,1862.9,1862.7,0.56110532]
[1680616764386,3.46893,1862.8,1862.5,1.40476329]
[1680616764589,2.01,1862.6,1862.5,0.84165797]
[1680616764891,2.01,1862.6,1862.5,0.56161425]
[1680616765095,2.01,1862.6,1862.5,1.40327222]
[1680616765294,2.01,1862.6,1862.5,0.56161425]
[1680616765505,0.346893,1862.7,1862.5,0.56161425]
[1680616765645,3.01885024,1862.8,1862.5,0.56161425]
[1680616766794,0.00685024,1862.8,1862.6,4.91202218]
[1680616767092,2.00985024,1863.0,1862.7,0.77635425]
[1680616767249,2.00985024,1863.0,1862.7,2.92235425]
[1680616767250,2.25140936,1863.0,1862.7,2.92235425]
[1680616768054,2.00985024,1863.0,1862.7,2.92235425]
[1680616768260,2.00985024,1863.0,1862.8,0.56161425]
[1680616768672,2.00985024,1863.0,1862.8,2.92234425]
[1680616768843,2.00985024,1863.0,1862.8,0.77634425]
[1680616769259,2.018,1862.9,1862.8,0.56161425]
[1680616769563,6.87288502,1862.9,1862.6,0.56361425]
[1680616769748,2.018,1862.7,1862.5,0.56161425]
[1680616770093,2.012,1862.6,1862.4,0.56161425]
[1680616770262,2.003,1862.5,1862.4,0.56161425]
[1680616771240,3.02185024,1862.7,1862.4,0.56161425]
[1680616771442,1.00685024,1862.7,1862.4,1.61804222]
[1680616772043,1.00685024,1862.7,1862.4,0.77638425]
[1680616772256,1.00685024,1862.7,1862.4,0.56161425]
[1680616772462,1.00685024,1862.7,1862.5,0.56161425]
[1680616772661,1.00685024,1862.7,1862.4,3.54927222]
[1680616772914,1.00685024,1862.7,1862.4,0.77638425]
[1680616773328,1.00685024,1862.7,1862.4,0.56161425]
[1680616773623,1.00685024,1862.7,1862.5,0.56161425]
[1680616773776,1.00685024,1862.7,1862.4,1.61804222]
[1680616773976,1.00685024,1862.7,1862.4,0.77638425]
[1680616774240,1.00685024,1862.7,1862.4,1.40327222]
[1680616774535,1.998,1862.5,1862.3,0.56361425]
[1680616774830,1.998,1862.5,1862.2,0.56161425]
[1680616774831,2.005,1862.4,1862.2,0.56161425]
[1680616775123,2.005,1862.4,1862.1,0.56161425]
[1680616775428,0.2005,1862.3,1862.1,1.40327222]
[1680616775594,0.2005,1862.3,1862.1,0.56161425]
[1680616775924,2.01185024,1862.4,1862.1,0.56161425]
[1680616776093,2.005,1862.4,1862.0,0.56161425]
[1680616776421,2.018,1862.2,1862.0,0.56161425]
[1680616776622,2.018,1862.2,1862.0,1.40327222]
[1680616776978,2.018,1862.2,1862.0,0.56161425]
[1680616777178,5.4028,1862.1,1861.9,0.56161425]
[1680616777435,2.018,1862.0,1861.9,0.56161425]
[1680616777929,2.018,1862.0,1861.8,0.56161425]
[1680616778135,2.018,1862.0,1861.8,1.40327222]
[1680616778479,2.018,1862.0,1861.8,0.56161425]
[1680616780339,2.018,1862.0,1861.7,3.54927222]
[1680616780539,2.234836,1862.0,1861.7,2.70761425]
[1680616781097,2.018,1862.0,1861.7,2.70761425]
[1680616781353,2.018,1862.0,1861.7,2.92246425]
[1680616781937,4.21285024,1862.2,1861.7,5.68848643]
[1680616781938,2.018,1862.1,1861.7,5.68848643]
[1680616782839,1.00985024,1862.2,1861.7,5.68848643]
[1680616782840,0.003,1862.2,1862.0,0.64446]
[1680616783140,1.00685024,1862.6,1862.1,2.98083218]
[1680616783299,1.00685024,1862.6,1862.1,5.68844643]
[1680616783499,1.00685024,1862.6,1862.2,2.146]
[1680616783699,0.99691368,1862.6,1862.2,0.006]
[1680616783947,0.99691368,1862.6,1862.2,2.36079]
[1680616784143,0.99691368,1862.6,1862.2,2.36679]
[1680616784348,1.14723368,1862.6,1862.2,2.152]
[1680616784500,0.99691368,1862.6,1862.2,2.152]
[1680616784701,0.99691368,1862.6,1862.2,2.36679]
[1680616785552,0.99691368,1862.6,1862.3,2.146]
[1680616785845,0.99691368,1862.6,1862.3,2.36078]
[1680616786341,0.99691368,1862.6,1862.2,3.35282222]
[1680616786550,0.99691368,1862.6,1862.3,2.146]
[1680616786706,0.99691368,1862.6,1862.3,2.36678]
[1680616786908,10.3459,1862.7,1862.3,2.36678]
[1680616787157,0.003,1862.7,1862.4,4.9340707]
[1680616787303,1.133192,1863.1,1862.5,0.21476]
[1680616787304,1.14004224,1863.1,1862.5,0.21476]
[1680616787503,1.133192,1863.1,1862.5,5.55631218]
[1680616787750,1.133192,1863.1,1862.6,2.146]
[1680616788041,1.133192,1863.1,1862.7,0.21473]
[1680616788202,1.133192,1863.1,1862.8,2.76602218]
[1680616788203,0.99691368,1863.1,1862.8,2.76602218]
[1680616788660,10.82715024,1863.2,1862.8,5.12674218]
[1680616788992,0.003,1863.2,1862.9,2.146]
[1680616789289,0.11000001,1863.3,1862.9,0.21471]
[1680616789491,0.11000001,1863.3,1862.9,3.41016218]
[1680616789651,0.11000001,1863.3,1862.9,5.55616218]
[1680616789999,0.11000001,1863.3,1863.0,2.76602218]
[1680616790492,0.11000001,1863.3,1863.0,3.0642954]
[1680616790988,0.11000001,1863.3,1863.0,5.4249954]
[1680616791294,0.11000001,1863.3,1863.0,3.2789954]
[1680616791588,0.11000001,1863.3,1863.0,2.98072218]
[1680616791827,0.11000001,1863.3,1863.1,2.146]
[1680616791960,0.11000001,1863.3,1863.2,3.41006218]
[1680616792147,0.11000001,1863.3,1863.2,6.41206218]
[1680616792343,0.11000001,1863.3,1863.2,8.56006218]
[1680616792546,0.11000001,1863.3,1863.2,9.4162684]
[1680616794143,0.11000001,1863.3,1863.2,10.2749984]
[1680616794365,1e-08,1863.6,1863.3,0.13203786]
[1680616794562,1e-08,1863.6,1863.5,8.36602218]
[1680616794918,1e-08,1863.6,1863.5,12.00995218]
[1680616795128,1e-08,1863.6,1863.5,15.1500174]
[1680616795416,1e-08,1863.6,1863.5,15.1720529]
[1680616799214,1e-08,1863.6,1863.5,9.5720529]
[1680616799527,1e-08,1863.6,1863.5,15.1720529]
[1680616799728,1e-08,1863.6,1863.5,9.5720529]
[1680616800402,1e-08,1863.6,1863.5,13.76205768]
[1680616801300,2e-08,1863.8,1863.5,15.81705768]
[1680616801481,0.11300001,1864.5,1863.5,15.81705768]
[1680616801482,0.54174538,1865.8,1864.5,2.76602218]
[1680616801687,1.67421967,1866.4,1864.5,2.76602218]
[1680616801688,2.08026155,1866.5,1864.9,5.6]
[1680616802011,2.51338028,1866.7,1865.4,5.6]
[1680616802012,0.55814306,1865.8,1865.4,5.6]
[1680616802328,0.006,1866.6,1865.7,1.0]
[1680616802539,0.003,1867.0,1866.1,2.014]
[1680616802540,0.006,1866.9,1866.1,2.014]
[1680616802678,0.009,1867.4,1866.3,0.55823356]
[1680616802878,0.009,1867.4,1866.3,3.0]
[1680616802879,2.018,1867.3,1866.3,3.0]
[1680616803093,2.003,1866.8,1866.7,2.213]
[1680616803342,0.009,1867.3,1866.7,2.213]
[1680616803343,2.014,1867.0,1866.7,2.213]
[1680616803583,2.018,1866.9,1866.7,2.213]
[1680616803726,3.01491368,1866.9,1866.7,2.266]
[1680616803924,2.027,1866.9,1866.7,2.266]
[1680616804171,2.018,1866.9,1866.7,2.266]
[1680616804376,0.009,1866.9,1866.7,2.266]
[1680616804684,0.22204,1866.9,1866.7,2.266]
[1680616804841,0.23104,1866.9,1866.7,2.266]
[1680616805185,0.22204,1866.9,1866.7,2.266]
[1680616805480,0.22204,1866.9,1865.6,1.29208632]
[1680616805481,5.701,1866.8,1865.6,1.29208632]
[1680616805776,0.5701,1866.7,1866.2,0.002]
[1680616805981,0.55809777,1867.3,1866.2,0.002]
[1680616805982,10.6857,1867.0,1866.4,1.29208632]
[1680616806134,2.03,1867.0,1866.5,1.29208632]
[1680616806327,1.21263146,1866.8,1866.6,1.29208632]
[1680616806668,1.21263146,1866.8,1865.8,2.024]
[1680616806669,1.21263146,1866.8,1866.0,2.144]
[1680616806998,2.027,1867.0,1866.5,1.29208632]
[1680616807194,2.027,1867.0,1866.0,2.142]
[1680616807195,0.2027,1866.9,1866.1,0.002]
[1680616807493,0.2027,1866.9,1865.6,3.43408632]
[1680616807494,4.028,1866.2,1865.6,3.43408632]
[1680616807692,2.4008,1866.1,1865.6,1.29208632]
[1680616807911,0.009,1866.5,1865.5,0.02201187]
[1680616807912,0.003,1866.5,1865.5,0.02201187]
[1680616808047,0.003,1866.5,1865.9,1.29208632]
[1680616808048,3.7312,1866.5,1865.9,1.29208632]
[1680616808407,2.5152,1866.5,1866.0,0.171]
[1680616808699,2.005,1866.5,1866.0,1.46308632]
[1680616809006,2.018,1866.6,1866.0,4.2291085]
[1680616809143,2.021,1866.8,1866.1,2.142]
[1680616809348,2.14776372,1867.0,1866.5,1.29208632]
[1680616809612,2.012,1867.0,1866.5,0.02200009]
[1680616809757,2.012,1867.0,1866.7,0.176]
[1680616809954,2.005,1867.2,1866.7,0.176]
[1680616810260,0.009,1867.4,1866.8,2.14]
[1680616810261,0.003,1867.4,1866.8,2.14]
[1680616810465,0.003,1867.4,1866.9,1.29208632]
[1680616810466,2.005,1867.4,1866.9,1.29208632]
[1680616810879,2.005,1867.4,1867.0,1.69508632]
[1680616811063,1.998,1867.2,1867.0,0.403]
[1680616811406,5.0,1867.4,1867.0,0.403]
[1680616811407,2.018,1867.3,1867.0,0.403]
[1680616811904,2.018,1867.5,1867.0,0.403]
[1680616812072,2.018,1867.5,1867.0,1.69508632]
[1680616814769,2.003,1867.1,1867.0,0.423]
[1680616815356,2.003,1867.1,1866.5,0.006]
[1680616815604,2.003,1867.1,1866.7,0.405]
[1680616816602,0.13914022,1867.3,1866.8,1.29208632]
[1680616816811,0.12714022,1867.3,1866.8,1.29208632]
[1680616817314,2.003,1867.2,1866.8,1.29208632]
[1680616817509,1.903,1867.2,1866.8,1.29408632]
[1680616817803,1.903,1867.2,1866.9,1.29208632]
[1680616818005,1.903,1867.2,1866.7,0.411]
[1680616818210,1.903,1867.2,1866.6,2.142]
[1680616818211,2.018,1866.8,1866.6,0.006]
[1680616818438,2.018,1866.8,1866.5,0.006]
[1680616818597,1.968,1866.8,1866.3,6.97647592]
[1680616818796,1.968,1866.8,1866.4,4.90802218]
[1680616819114,0.1968,1866.8,1866.5,0.342]
[1680616819277,2.018,1867.0,1866.5,0.342]
[1680616819685,2.03,1867.2,1867.0,1.29208632]
[1680616819894,2.018,1867.2,1866.7,3.0]
[1680616820090,2.003,1867.4,1867.0,0.358]
[1680616820345,2.027,1867.6,1867.0,0.358]
[1680616820546,2.012,1867.4,1867.3,1.29208632]
[1680616820692,2.08267536,1867.6,1867.1,2.142]
[1680616820887,2.08267536,1867.6,1867.5,1.29208632]
[1680616820888,2.01,1867.6,1867.5,1.29208632]
[1680616821344,2.01,1867.6,1867.2,0.912]
[1680616821648,1.094,1867.4,1867.2,1.29208632]
[1680616821795,0.302,1867.4,1867.2,1.29208632]
[1680616821991,2.018,1867.5,1867.2,1.44708632]
[1680616822197,2.018,1867.5,1867.2,0.155]
[1680616822434,3.203,1867.7,1867.5,1.29208632]
[1680616822592,5.35652648,1867.7,1867.3,1.29208632]
[1680616822949,5.35652648,1867.7,1867.5,0.146]
[1680616822950,3.34752648,1867.7,1867.5,0.146]
[1680616823257,2.012,1867.6,1867.5,2.76602218]
[1680616823399,5.222,1867.9,1867.3,1.29208632]
[1680616823592,1.998,1867.6,1867.3,1.29208632]
[1680616823945,3.7372,1867.8,1867.5,0.153]
[1680616824106,5.7432,1867.8,1867.5,0.153]
[1680616824312,5.221,1867.6,1867.5,0.153]
[1680616824509,5.224,1867.6,1867.5,0.153]
[1680616824739,3.206,1867.6,1867.5,0.153]
[1680616825042,3.203,1867.6,1867.5,0.153]
[1680616825395,5.216,1867.6,1867.5,0.153]
[1680616825697,5.804932,1867.6,1867.5,0.153]
[1680616826117,5.804932,1867.6,1867.1,1.29208632]
[1680616826323,2.018,1867.4,1867.1,1.29208632]
[1680616827268,2.018,1867.4,1867.2,0.151]
[1680616827269,2.76602218,1867.4,1867.2,0.151]
[1680616827433,3.70960222,1867.3,1866.8,0.006]
[1680616827635,3.70960222,1867.3,1866.7,1.29208632]
[1680616828342,3.203,1867.2,1866.9,1.29208632]
[1680616828573,3.57396022,1867.2,1866.7,1.31408404]
[1680616828737,7.376,1867.1,1867.0,0.143]
[1680616828919,7.379,1867.1,1867.0,0.143]
[1680616829125,7.379,1867.1,1866.5,2.142]
[1680616829126,3.98189602,1867.1,1866.5,2.142]
[1680616829323,0.37996022,1867.2,1866.6,1.29208632]
[1680616829324,0.38296022,1867.2,1866.6,1.29208632]
[1680616829581,0.37096022,1867.2,1866.6,2.76602218]
[1680616829781,29.842,1867.4,1866.7,4.90602218]
[1680616829949,0.012,1867.4,1866.9,0.29208632]
[1680616830153,7.209,1867.7,1867.0,1.0]
[1680616830154,7.221,1867.7,1867.0,1.0]
[1680616830369,3.203,1867.6,1867.0,1.0]
[1680616830579,3.203,1867.6,1866.9,0.29208632]
[1680616830580,7.402,1867.5,1866.9,0.29208632]
[1680616830755,0.003,1867.5,1867.3,1.29208632]
[1680616831076,29.833,1867.8,1867.7,1.29208632]
[1680616831284,0.003,1867.8,1867.4,1.29208632]
[1680616831490,0.11000001,1868.0,1867.4,1.29208632]
[1680616832084,3.203,1867.9,1867.1,0.006]
[1680616832268,3.203,1867.9,1867.5,1.29208632]
[1680616832781,3.203,1867.9,1867.3,0.006]
[1680616833007,0.11000001,1868.0,1867.2,1.29208632]
[1680616833008,3.5233,1867.8,1867.2,1.29208632]
[1680616833198,3.203,1867.8,1867.2,1.29208632]
[1680616833397,7.412,1867.8,1867.2,1.29208632]
[1680616833542,7.415,1867.8,1867.2,1.29208632]
[1680616833738,3.203,1867.6,1867.2,1.29208632]
[1680616834391,0.7445,1867.7,1867.2,4.0581085]
[1680616834540,3.003,1867.9,1867.2,0.006]
[1680616834736,5.76602218,1867.9,1867.0,1.31408052]
[1680616834975,4.199,1867.8,1867.0,1.31408052]
[1680616835187,4.199,1867.8,1867.1,2.76602218]
[1680616835484,4.199,1867.8,1867.2,1.31407816]
[1680616835485,3.203,1867.8,1867.2,1.31407816]
[1680616835782,3.203,1867.8,1867.2,1.31807816]
[1680616835783,0.4199,1867.7,1867.2,1.31807816]
[1680616835984,0.4199,1867.7,1867.2,1.29208632]
[1680616836656,0.4199,1867.7,1867.5,1.29208632]
[1680616836844,29.95200001,1868.0,1867.9,1.29208632]
[1680616837061,0.11300001,1868.0,1867.9,1.29208632]
[1680616837258,0.11000001,1868.0,1867.9,1.29208632]
[1680616837469,3.64486765,1868.0,1867.8,1.29208632]
[1680616837890,7.85386765,1868.0,1867.5,1.24208632]
[1680616838073,7.85686765,1868.0,1867.5,1.24208632]
[1680616838276,3.203,1867.8,1867.5,1.24208632]